Cogmind - Beta 16.1 @@@ ROGUE MODE // 2026.06.20 @ 16:49:52 Player: D4-RYL Result: Self-destructed Performance ------------- Evolutions (1) 500 Regions Visited (3) 600 Robots Destroyed (38) 190 Value Destroyed (559) 559 Prototype IDs (0) 0 Alien Tech Used (0) 0 Bonus (0) 0 TOTAL SCORE: 1849 Bonus ------- None Cogmind --------- Core Integrity 341/400 Matter 216/300 Energy 125/125 System Corruption 0% Temperature Cool (0) Movement Rolling (110) Ox2 Location -9/Materials Parts ------- > --- POWER (1) -------- Light Ion Engine > --- PROPULSION (3) --- Light Treads Wheel > --- UTILITY (3) ------ Large Storage Unit Seismic Detector > --- WEAPON (2) ------- Assault Rifle Light Cannon > --- INVENTORY (15) --- Ion Engine Light Treads Cooling System Huge Storage Unit Large Matter Pod (150) Medium Armor Plating Heavy EM Pulse Gun Heavy EM Pulse Gun Medium Laser Particle Gun Grenade Launcher Datajack Peak State ------------ > --- POWER ------------ Ion Engine > --- PROPULSION ------- Light Treads Wheel Wheel > --- UTILITY ---------- Large Storage Unit Seismic Detector Medium Armor Plating > --- WEAPON ----------- Medium Laser Assault Rifle > --- INVENTORY -------- Ion Engine Light Treads Wheel Cooling System Large Storage Unit Large Matter Pod Medium Armor Plating Heavy EM Pulse Gun Heavy EM Pulse Gun Particle Gun Light Cannon Grenade Launcher Datajack [Rating: 11] Favorites ----------- Power Ion Engine Engine Ion Engine Propulsion Wheel Treads Light Treads Wheel Wheel Utility Seismic Detector Device Seismic Detector Storage Large Storage Unit Protection Medium Armor Plating Weapon Assault Rifle Energy Gun Medium Laser Ballistic Gun Assault Rifle Ballistic Cannon Light Cannon Launcher Grenade Launcher Build | -11 -10 -10 -9 ------- Run | Yrd Mat Min Mat Slots Evolved 2 | . . . 2 Power . | . . . . Propulsion 1 | . . . 1 Utility 1 | . . . 1 Weapon . | . . . . Parts Attached 18 | 8 3 2 5 Power 2 | 1 . . 1 Engine 2 | 1 . . 1 Core . | . . . . Reactor . | . . . . Propulsion 6 | 2 . 2 2 Treads 1 | . . . 1 Leg . | . . . . Wheel 5 | 2 . 2 1 Hover . | . . . . Flight . | . . . . Utility 5 | 2 2 . 1 Device 1 | 1 . . . Storage 3 | 1 2 . . Processor . | . . . . Hackware . | . . . . Protection 1 | . . . 1 Artifact . | . . . . Weapon 5 | 3 1 . 1 Energy Gun 1 | 1 . . . Energy Cannon . | . . . . Ballistic Gun 2 | 2 . . . Ballistic Cannon 1 | . . . 1 Launcher 1 | . 1 . . Special Weapon . | . . . . Impact Weapon . | . . . . Slashing Weapon . | . . . . Piercing Weapon . | . . . . Special Melee Weapon . | . . . . Unidentified Prototypes . | . . . . Parts Lost 6 | . . 2 4 Power 1 | . . . 1 Propulsion 4 | . . 2 2 Utility 1 | . . . 1 Weapon . | . . . . Highest Loss Streak 2 | . . 1 2 To Critical Strikes . | . . . . Average Backups 11 | 3 9 14 12 Power . | . 1 1 1 Propulsion 2 | 1 2 3 1 Utility 3 | . 2 5 4 Weapon 3 | . 2 4 5 Tool/Special . | . . . . Unused Backups 14 | . 3 . 11 Power 1 | . . . 1 Propulsion 1 | . . . 1 Utility 8 | . 3 . 5 Weapon 3 | . . . 3 Tool/Special 1 | . . . 1 Average Slot Usage (%) 99 | . 100 99 92 Engine 13 | . 14 14 8 Treads 1 | . . . 11 Wheel 26 | . 28 27 18 Device 13 | . 14 14 11 Storage 13 | . 14 14 11 Energy Gun 13 | . 14 14 5 Ballistic Gun 13 | . 13 14 11 Peak Build Rating 11 | 7 9 9 11 Average Rating 8 | 5 7 8 10 On Entrance 6 | . 7 9 9 Avg Prop Armor Cover (%) 7 | . . . 7 Naked Turns . | . . . . Heaviest Build 37 | 15 30 30 37 Greatest Support 26 | 26 26 26 20 Greatest Overweight (x) 3 | . 1 2 3 Average Overweight (x) . | . . 1 1 Largest Inventory Capacity 15 | 8 15 15 15 Average Capacity 12 | 7 11 15 15 Most Carried 15 | 4 15 15 14 Average Carried 11 | 3 9 14 12 Final Capacity 15 | 8 15 15 15 Final Carried 15 | 4 15 15 12 Class Distribution -------------------- 94% | Mutant 5% | Scavenger-Mutant Dominant Class ---------------- Mutant | -10/Materials Mutant | -10/Mines Scavenger-Mutant | -9/Materials Resources | -11 -10 -10 -9 ----------- Run | Yrd Mat Min Mat Matter Collected 820 | 312 228 187 93 Remotely . | . . . . Salvage Created 745 | 111 305 204 125 Parts 82 | 16 38 14 14 Haulers Intercepted 2 | . 2 . . Recyclers Shooed . | . . . . Parts Field Recycled . | . . . . Retrieved Matter . | . . . . Parts Self-Destructed . | . . . . Prevented . | . . . . Parts Restored . | . . . . Kills | -11 -10 -10 -9 ------- Run | Yrd Mat Min Mat Combat Hostiles Destroyed 23 | . 9 7 7 Guns 11 | . 2 7 2 Cannons 5 | . . . 5 AOE 7 | . 7 . . Classes Destroyed 7 | 1 5 . 1 Builder 3 | . 3 . . Tunneler 7 | 6 1 . . Hauler 2 | . 2 . . Watcher 3 | . 3 . . Swarmer 16 | . 8 3 5 Grunt 5 | . 1 4 . Sentry 2 | . . . 2 Best Kill Streak 7 | 4 6 4 7 Combat Bots Only 7 | . 3 4 7 Max Kills in Single Turn 3 | 1 3 1 1 Gunslinging . | . . . . Exploded 3 | . 3 . . Melee . | . . . . Uniques/NPCs Destroyed . | . . . . Combat | -11 -10 -10 -9 -------- Run | Yrd Mat Min Mat Hostile Shots Fired 101 | . 21 26 54 Missed 28 | . 9 5 14 Hits 73 | . 12 21 40 Projectile 73 | . 12 21 40 Damage Taken 818 | . 186 236 396 Core 168 | . 65 44 59 Absorbed by Shields . | . . . . Core Remaining (%) 78 | 100 . 56 . Volleys Fired 78 | 14 24 19 21 Largest 2 | 2 2 2 2 Hottest 70 | 70 70 70 50 Shots Fired 148 | 28 40 38 42 Gun 121 | 28 34 38 21 Cannon 21 | . . . 21 Launcher 6 | . 6 . . Special . | . . . . Kinetic 91 | 14 16 19 42 Thermal 51 | 14 18 19 . Explosive 6 | . 6 . . Electromagnetic . | . . . . Robot Hit Streak 7 | 6 4 6 7 Robot Miss Streak 4 | 4 3 2 3 Penetration Max . | . . . . Secondary Targets . | . . . . Shots Hit Robots 89 | 18 22 24 25 Core Hits 46 | 7 20 10 9 Critical Kills 1 | . 1 . . Critical Parts Destroyed . | . . . . Critical Strikes 6 | 1 2 1 2 Burn 3 | 1 1 1 . Destroy 1 | . 1 . . Blast 2 | . . . 2 Melee Attacks . | . . . . Impact . | . . . . Slashing . | . . . . Piercing . | . . . . Sneak Attacks . | . . . . Combat Hostiles . | . . . . Follow-up Attacks . | . . . . Damage Inflicted 1863 | 224 940 306 393 Guns 940 | 224 258 306 152 Cannons 241 | . . . 241 Explosions 682 | . 682 . . Melee . | . . . . Ramming . | . . . . Kinetic 792 | 111 134 154 393 Thermal 389 | 113 124 152 . Explosive 682 | . 682 . . Electromagnetic . | . . . . Impact . | . . . . Slashing . | . . . . Piercing . | . . . . Highest Corruption . | . . . . Average Corruption . | . . . . Corruption Purged . | . . . . Corruption Blocked . | . . . . Overload Shots . | . . . . Overflow Damage 73 | . 73 . . Projectiles . | . . . . Explosions 73 | . 73 . . Melee . | . . . . Knockbacks . | . . . . Impact . | . . . . Kinetic . | . . . . Secondary . | . . . . Self-Inflicted Damage 79 | . 79 . . Shots 4 | . 4 . . Rammed . | . . . . Targets Rammed . | . . . . Kicked . | . . . . Crushed . | . . . . Highest Temperature 117 | 45 27 117 5 Average Temperature 26 | 14 9 50 2 Received Heat Transfer 165 | . . 120 45 Siege Activations . | . . . . Martial Activations . | . . . . Shielding Activations . | . . . . Robots Disrupted . | . . . . Combat Hostiles . | . . . . Robots Corrupted . | . . . . Combat Hostiles . | . . . . Parts Fried . | . . . . Impact Corruptions . | . . . . Robots Melted . | . . . . Combat Hostiles . | . . . . Parts Melted 2 | . 1 1 . Heat Transferred 1369 | 407 444 518 . Parts Sabotaged . | . . . . Parts Stolen . | . . . . Parts Stripped . | . . . . Power Chain Reactions . | . . . . Alert | -11 -10 -10 -9 ------- Run | Yrd Mat Min Mat Maximum Alert Level . | . . . . Low Security (%) 100 | 100 100 100 100 Level 1 . | . . . . Level 2 . | . . . . Level 3 . | . . . . Level 4 . | . . . . Level 5 . | . . . . High Security . | . . . . Max Security . | . . . . Peak Influence 168 | 15 168 125 102 Initial 30 | . 3 30 . Average 40 | 1 70 27 28 Influence Increases 732 | 30 345 185 172 Destroy 0b10 Robot/C 460 | . 180 140 140 Destroy 0b10 Robot/NC 75 | 30 45 . . Destroy Leader 100 | . 40 30 30 Successful Hack 7 | . 7 . . Disable Machine 15 | . 15 . . Destroy Structure 45 | . 43 . 2 Lose Combat Pursuer 30 | . 15 15 . Influence Decreases 630 | 25 273 262 70 Entered New Map 49 | . 2 47 . Time Decay 521 | 25 271 195 30 Lost Part 60 | . . 20 40 Squads Dispatched 2 | . 1 1 . Investigation 1 | . . 1 . Extermination . | . . . . Reinforcement 1 | . 1 . . Assault . | . . . . Garrison . | . . . . Intercept . | . . . . Searches Triggered . | . . . . Construction Impeded . | . . . . Haulers Reinforced . | . . . . Active Scanning Responses . | . . . . Cargo Convoy Interrupts . | . . . . Stealth | -11 -10 -10 -9 --------- Run | Yrd Mat Min Mat Distress Signals 2 | . 1 . 1 Communications Jammed . | . . . . Distress Signals . | . . . . Times Spotted 33 | . 17 8 8 Peak Tracking Total 6 | . 5 3 6 Tactical Retreats 2 | . 1 1 . Traps | -11 -10 -10 -9 ------- Run | Yrd Mat Min Mat Traps Triggered 1 | . 1 . . Indirectly . | . . . . Trap Hack Attempts . | . . . . Triggered . | . . . . Disarmed 1 | . 1 . . Reprogrammed . | . . . . Reused . | . . . . Traps Extracted . | . . . . Installed . | . . . . Triggered . | . . . . Machines | -11 -10 -10 -9 ---------- Run | Yrd Mat Min Mat Machines Disabled 1 | . 1 . . Max in Single Turn 1 | . 1 . . Machines Repaired . | . . . . Machines Dismantled . | . . . . Machines Sabotaged . | . . . . Overloaded Fab Kills . | . . . . Hacking | -11 -10 -10 -9 --------- Run | Yrd Mat Min Mat Machines Accessed 7 | . 5 1 1 Terminals 7 | . 5 1 1 Fabricators . | . . . . Repair Stations . | . . . . Recycling Units . | . . . . Scanalyzers . | . . . . Garrison Access . | . . . . Total Hacks 14 | . 9 3 2 Successful 8 | . 5 2 1 Failed 6 | . 4 1 1 Catastrophic 1 | . 1 . . Database Lockouts . | . . . . Manual 3 | . 3 . . Terminals 14 | . 9 3 2 Fabricators . | . . . . Repair Stations . | . . . . Recycling Units . | . . . . Scanalyzers . | . . . . Garrison Access . | . . . . Terminal Hacks 8 | . 5 2 1 Record 3 | . 1 2 . Robot Analysis 1 | . 1 . . Emergency Access Points 1 | . 1 . . Locate Traps 1 | . 1 . . Disarm Traps 1 | . 1 . . Dispatch Records 1 | . . . 1 Fabricator Hacks . | . . . . Repair Station Hacks . | . . . . Recycling Unit Hacks . | . . . . Scanalyzer . | . . . . Garrison Access Hacks . | . . . . Unauthorized Hacks . | . . . . Terminals . | . . . . Fabricators . | . . . . Repair Stations . | . . . . Recycling Units . | . . . . Scanalyzers . | . . . . Garrison Access . | . . . . Data Cores Recovered . | . . . . Used . | . . . . Hacking Detections 5 | . 4 1 . Full Trace Events 2 | . 1 1 . Feedback Events . | . . . . Feedback Blocked . | . . . . Robot Schematics Acquired . | . . . . Robots Built . | . . . . Authchips . | . . . . Time . | . . . . Total Robot Build Rating . | . . . . Part Schematics Acquired . | . . . . Parts Built . | . . . . Authchips . | . . . . Time . | . . . . Total Part Build Rating . | . . . . Part Studies Acquired . | . . . . Parts Repaired . | . . . . Time . | . . . . Parts Recycled . | . . . . Recycled Matter . | . . . . Retrieved Matter . | . . . . Retrieved Components . | . . . . Parts Scanalyzed . | . . . . Part Schematics Acquired . | . . . . Parts Damaged . | . . . . Bothacking | -11 -10 -10 -9 ------------ Run | Yrd Mat Min Mat Used RIF Installer . | . . . . Robots Hacked . | . . . . Non-combat . | . . . . Combat . | . . . . Robot Hacks Applied . | . . . . Relay Couplers Released . | . . . . Fabnet Peak Effective % . | . . . . Robots Rewired . | . . . . Allies Hacked . | . . . . Hacks Repelled . | . . . . Allies | -11 -10 -10 -9 -------- Run | Yrd Mat Min Mat Total Allies . | . . . . Largest Group . | . . . . Highest-Rated Group . | . . . . Highest-Rated Ally . | . . . . Total Orders . | . . . . Ally Attacks . | . . . . Total Damage . | . . . . Kills . | . . . . Allies Corrupted . | . . . . Allies Melted . | . . . . Intel | -11 -10 -10 -9 ------- Run | Yrd Mat Min Mat Active Infowar (turns) 1664 | 5 704 800 155 Seismic 1664 | 5 704 800 155 Robot Analysis Total 1 | . 1 . . Derelict Logs Recovered 2 | . . 2 . Drone Launches . | . . . . Drone Recoveries . | . . . . Exploration | -11 -10 -10 -9 ------------- Run | Yrd Mat Min Mat Turns Passed 1894 | 235 704 800 155 Spaces Moved 1558 | 93 634 762 69 Core 4 | 4 . . . Treads . | . . . . Legs . | . . . . Wheels 1554 | 89 634 762 69 Hover . | . . . . Flight . | . . . . Fastest Speed 50 | 50 90 95 95 Average Speed 94 | 88 94 95 98 Slowest Speed 125 | 100 105 110 125 Overloaded Moves . | . . . . Propulsion Burnouts . | . . . . Robots Hopped . | . . . . Potential Cave-ins . | . . . . Cave-ins Triggered . | . . . . Exploration Rate (%) 47 | 3 78 98 9 Regions Visited 3 Branch Regions 1 Pre-discovered Areas 1 | . . 1 . Known Exits Taken . | . . . . Unknown Exits Taken 3 | 1 1 1 . Scrap Searched 1 | . . 1 . Spaces Dug . | . . . . Terrain Destroyed 40 | . 40 . . Melee . | . . . . Projectile . | . . . . AOE 40 | . 40 . . Terrain Rammed . | . . . . Walls Destroyed . | . . . . Machines Disabled . | . . . . Actions | -11 -10 -10 -9 --------- Run | Yrd Mat Min Mat Total 1820 | 213 700 794 113 Wait 133 | 95 12 10 16 Move 1555 | 92 633 761 69 Hop . | . . . . Pick Up 24 | 4 17 2 1 Fast Attach 8 | 7 . . 1 Attach 5 | . . 2 3 Detach . | . . . . Swap 10 | 1 8 . 1 Drop 7 | . 6 . 1 Fire 78 | 14 24 19 21 Melee . | . . . . Ram . | . . . . Kick . | . . . . Crush . | . . . . Escape Stasis . | . . . . Rewire . | . . . . Trap . | . . . . Miscellaneous . | . . . . Route ------- -11/Scrapyard -10/Materials (discovered 4 exits: *Mat x2 / *Min x2) -10/Mines (discovered 2 exits: *Mat x2) -9/Materials History --------- Turn | Location | Event 30 | -11/Scrapyard | Discovered new exit (range 15) 236 | -11/Scrapyard | Entered Materials 310 | -10/Materials | Build established: Mutant 428 | -10/Materials | Discovered new exit (range 11) 724 | -10/Materials | Discovered new exit (range 14) 755 | -10/Materials | Discovered new exit (range 5) 904 | -10/Materials | Discovered new exit (range 14) 940 | -10/Materials | Entered Mines 1049 | -10/Mines | Learned Materials terminal intel 1073 | -10/Mines | Discovered new exit (range 11) 1095 | -10/Mines | Learned location of Storage (-7) 1226 | -10/Mines | Discovered new exit (range 9) 1740 | -10/Mines | Entered Materials 1740 | -9/Materials | Evolved 2 slots: Propulsion x1, Utility x1 1741 | -9/Materials | Loaded intel: 12 terminal locations 1895 | -9/Materials | Self-destructed Last Messages --------------- 01824_ S-10 Pest destroyed. 01829_ Wheel destroyed. 01833_ Y-45 Defender destroyed. 01834_ Ion Engine destroyed. 01839_ S-10 Pest destroyed. 01845_ R-06 Scavenger collects Lgt. Assault Rifle. 01848_ R-06 Scavenger collects Beam Rifle. 01854_ S-10 Pest Lgt. Assault Rifle blasted off. 01854_ S-10 Pest destroyed. 01864_ Acquired Lgt. Ion Engine. 01868_ Y-45 Defender Heat Sink blasted off. 01871_ Med. Armor Plating destroyed. 01871_ Y-45 Defender destroyed. 01878_ Wheel destroyed. 01880_ Destroyed Lgt. Ion Engine. 01883_ S-10 Pest destroyed. 01887_ U-05 Engineer builds a Door. 01889_ Acquired 14 matter. 01893_ Acquired 79 matter. Map ----- +----------------------------------------------------+ | ?????????????????????????????????????????????????? | | ?????????????????????????????????????????????????? | | ????????????????????????????????????????????###### | | ????????????????????????????????????????????# | | ????????????????????????????????????????????# | | ????????????????????????????????????????????# | | ????????????????????????????????????????????# | | ????????????????????????????????????????????# | | ?????????????????????????????????????????????? | | ????????????????????????????????????????????####+# | | ????????????????????????????????????????????# | | ????????????????????????????????????????????# | | ?????????????????????????????????????######## | | ????????????????#????????????????????# # ## | | ????????????????# ???????????????????# # #? | | ????????????????# ??????????????????#"" # #? | | ????????????????# ?????"T"?????????#"T + #? | | ????????????????# ????"""?????????#"" ! # #? | | ????????????????# ???????????????# # #? | | ????????????????# ??????????????######## ## | | ?????????????#### ##################### # | | ???????????? # | | ???????????? !%= " # | | ???????????? %==% # | | ??????????????????########+#############+### ! ! # | | ?????????????????????# !=@ != #?????# ####### | | ?????????????????????# = %= #?????# """ #?????? | | ?????????????????????# [ % #?????# """ #?????? | | ?????????????????????# %=% #?????# """ #?????? | | ?????????????????????# #?????# """ #?????? | | ?????????????????????# #?????# """ #?????? | | ?????????????????????# #?????# #?????? | | ?????????????????????# #?????#######?????? | | ?????????????????????###########?????????????????? | | ?????????????????????????????????????????????????? | | ?????????????????????????????????????????????????? | | ?????????????????????????????????????????????????? | | ?????????????????????????????????????????????????? | | ?????????????????????????????????????????????????? | | ?????????????????????????????????????????????????? | | ?????????????????????????????????????????????????? | | ?????????????????????????????????????????????????? | | ?????????????????????????????????????????????????? | | ?????????????????????????????????????????????????? | | ?????????????????????????????????????????????????? | | ?????????????????????????????????????????????????? | | ?????????????????????????????????????????????????? | | ????????????????????????????????????????????????T? | | ?????????????????????????????????????????????????? | | ?????????????????????????????????????????????????? | +----------------------------------------------------+ Best States ------------- Heat Dissipation 28 Energy Generation 10 Energy Capacity 250 Matter Stores 300 Matter Capacity 300 Sight Range 16 Terrain Scan Density 10 Armor Coverage 225 Evasion (%) 42 Recoil Reduction 1 Item Schematics ----------------- None Robot Schematics ------------------ None Fabricated ------------ Nothing Repaired ---------- Nothing Studied --------- None Alien Tech Used ----------------- None Achievements -------------- None Challenges ------------ None Game ------ Seed SmartbombAnalysisStatue Manual? 0 Play Time 00:19:33 Cumulative 25.6 hours Start 2026.06.20 @ 16:19:46 End 2026.06.20 @ 16:49:52 Sessions 1 Manual Loads 0 Difficulty Rogue Special Mode None Game No. 32 Rogue 28 Adventurer 4 Explorer 0 Win Type - Total 0 Types 0/0/0/0/0/0/0/0/0/0 Lore% 9 Gallery% 12 Achievement% 14 Wizard Run 0 Options --------- Layout 2 ASCII 0 Keyboard 1 Movement Numpad Keybinds 0 Fullscreen 1 Font 24/Terminus Map View 50x44 Zoom Use 10% Tactical HUD 1 Map Filters NONE Filters NONE Steam 1 RUN: 641552c8-24f5-4312-a65a-85428aad8e40